fUSD/lending_fUSD_20260531
["ID","MTS","AMOUNT","RATE_DAILY","PERIOD"]
[423515724,1780181432000,-1146.86392482,0.00015157,2]
[423515726,1780181432000,-665.79967857,0.00015157,2]
[423515727,1780181432000,-2088.41628585,0.00015157,2]
[423515728,1780181432000,-2767.1014284,0.00015157,2]
[423515729,1780181432000,-463.26,0.00015157,2]
[423515730,1780181432000,-3828.28037571,0.00015157,2]
[423515677,1780181432000,-267.58,0.00014881,2]
[423515721,1780181432000,-1763.20802313,0.00015157,2]
[423515704,1780181432000,-500.0,0.00015156,2]
[423515691,1780181432000,-500.0,0.00014999,2]
[423515706,1780181432000,-412.44368182,0.00015156,2]
[423515679,1780181432000,-4175.8268,0.0001489,2]
[423515681,1780181432000,-947.2,0.00014938,2]
[423515682,1780181432000,-267.58,0.00014957,2]
[423515683,1780181432000,-50753.00634154,0.0001499,2]
[423515685,1780181432000,-186.64364503,0.00014999,2]
[423515686,1780181432000,-500.0,0.00014999,2]
[423515678,1780181432000,-5146.2264,0.0001489,2]
[423515684,1780181432000,-500.0,0.00014999,2]
[423515688,1780181432000,-500.0,0.00014999,2]
[423515687,1780181432000,-500.0,0.00014999,2]
[423515690,1780181432000,-500.0,0.00014999,2]
[423515702,1780181432000,-150.0,0.00015156,2]
[423515689,1780181432000,-500.0,0.00014999,2]
[423515692,1780181432000,-4527.36529382,0.00015008,2]
[423515693,1780181432000,-267.58,0.00015033,2]
[423515699,1780181432000,-500.0,0.00015156,2]
[423515696,1780181432000,-949.57421006,0.00015078,2]
[423515695,1780181432000,-5000.0,0.00015057,2]
[423515698,1780181432000,-267.58,0.00015108,2]
[423515697,1780181432000,-5228.7588243,0.00015078,2]
[423515701,1780181432000,-500.0,0.00015156,2]
[423515700,1780181432000,-500.0,0.00015156,2]
[423515703,1780181432000,-500.0,0.00015156,2]
[423515705,1780181432000,-500.0,0.00015156,2]
[423515694,1780181432000,-2500.0,0.00015057,2]
[423515741,1780181437000,-490.55382876,0.00013343,2]
[423515800,1780181439000,-152.0,0.00010194,7]
[423515801,1780181439000,-9.44617124,0.00013343,2]
[423515804,1780181439000,-500.0,0.00013343,2]
[423515802,1780181439000,-500.0,0.00013343,2]
[423515803,1780181439000,-322.01590857,0.00013343,2]
[423515806,1780181439000,-360.10092271,0.00013343,2]
[423515807,1780181439000,-500.0,0.00013343,2]
[423515808,1780181439000,-500.0,0.00013343,2]
[423515805,1780181439000,-500.0,0.00013343,2]
[423515834,1780181440000,-500.0,0.00013699,2]
[423515819,1780181440000,-500.0,0.00013699,2]
[423515824,1780181440000,-500.0,0.00013699,2]
[423515825,1780181440000,-500.0,0.00013699,2]
[423515827,1780181440000,-500.0,0.00013699,2]
[423515828,1780181440000,-500.0,0.00013699,2]
[423515831,1780181440000,-500.0,0.00013699,2]
[423515826,1780181440000,-500.0,0.00013699,2]
[423515842,1780181440000,-500.0,0.00013699,2]
[423515832,1780181440000,-500.0,0.00013699,2]
[423515837,1780181440000,-500.0,0.00013699,2]
[423515829,1780181440000,-500.0,0.00013699,2]
[423515809,1780181440000,-500.0,0.00013343,2]
[423515822,1780181440000,-500.0,0.00013699,2]
[423515830,1780181440000,-500.0,0.00013699,2]
[423515823,1780181440000,-500.0,0.00013699,2]
[423515820,1780181440000,-500.0,0.00013699,2]
[423515817,1780181440000,-500.0,0.00013699,2]
[423515813,1780181440000,-500.0,0.00013343,2]
[423515815,1780181440000,-500.0,0.00013343,2]
[423515816,1780181440000,-500.0,0.00013699,2]
[423515812,1780181440000,-500.0,0.00013343,2]
[423515814,1780181440000,-500.0,0.00013343,2]
[423515811,1780181440000,-500.0,0.00013343,2]
[423515810,1780181440000,-500.0,0.00013343,2]
[423515818,1780181440000,-500.0,0.00013699,2]
[423515821,1780181440000,-500.0,0.00013699,2]
[423515835,1780181440000,-500.0,0.00013699,2]
[423515843,1780181440000,-500.0,0.00013699,2]
[423515833,1780181440000,-500.0,0.00013699,2]
[423515866,1780181440000,-60018.85854197,0.00015203,2]
[423515864,1780181440000,-1104.97243931,0.000152,2]
[423515857,1780181440000,-500.0,0.00013699,2]
[423515860,1780181440000,-5000.0,0.00015057,2]
[423515861,1780181440000,-1186513.1934616,0.00015157,2]
[423515863,1780181440000,-523.75966705,0.000152,2]
[423515862,1780181440000,-2000.0,0.00015178,2]
[423515859,1780181440000,-500.0,0.00013699,2]
[423515858,1780181440000,-500.0,0.00013699,2]
[423515840,1780181440000,-381.77718263,0.00013699,2]
[423515847,1780181440000,-500.0,0.00013699,2]
[423515849,1780181440000,-500.0,0.00013699,2]
[423515850,1780181440000,-500.0,0.00013699,2]
[423515856,1780181440000,-500.0,0.00013699,2]
[423515846,1780181440000,-500.0,0.00013699,2]
[423515836,1780181440000,-500.0,0.00013699,2]
[423515851,1780181440000,-500.0,0.00013699,2]
[423515841,1780181440000,-500.0,0.00013699,2]
[423515839,1780181440000,-500.0,0.00013699,2]
[423515844,1780181440000,-500.0,0.00013699,2]
[423515838,1780181440000,-500.0,0.00013699,2]
[423515855,1780181440000,-500.0,0.00013699,2]
[423515848,1780181440000,-500.0,0.00013699,2]
[423515852,1780181440000,-500.0,0.00013699,2]
[423515845,1780181440000,-500.0,0.00013699,2]
[423515853,1780181440000,-500.0,0.00013699,2]
[423515854,1780181440000,-500.0,0.00013699,2]
[423515865,1780181440000,-204.89987102,0.000152,2]
[423515867,1780181441000,152.0,0.0002793,120]
[423515878,1780181443000,-144.69324491,0.00015203,2]
[423515880,1780181443000,-4879.44990815,0.00015203,2]
[423515877,1780181443000,-152.0,0.00010201,7]
[423515879,1780181443000,-538.87644395,0.00015203,2]
[423515876,1780181443000,-152.0,0.00010194,7]
[423515900,1780181472000,152.0,0.0002793,120]
[423515901,1780181473000,152.0,0.0002793,120]
[423515902,1780181506000,594.14,0.00027777,120]
[423515903,1780181526000,152.0,0.0002793,120]
[423515909,1780182120000,171.26,9.824e-05,2]
[423515910,1780182149000,152.0,0.00027778,120]
[423515916,1780182444000,152.0,0.00027738,120]
[423515917,1780182540000,1000.0,0.00027995,120]
[423515919,1780182631000,-152.0,0.00010193,7]
[423515918,1780182631000,-152.0,0.00010193,7]
[423515921,1780182631000,-150.0,0.00010193,7]
[423515922,1780182631000,-152.0,0.00010196,7]
[423515924,1780182631000,-152.0,0.00010199,7]
[423515935,1780182631000,-261.6,0.00011446,2]
[423515925,1780182631000,-152.0,0.00010216,7]
[423515926,1780182631000,-1200.0,0.00011211,2]
[423515934,1780182631000,-155.96,0.00011421,2]
[423515923,1780182631000,-152.0,0.00010196,7]
[423515920,1780182631000,-152.0,0.00010193,7]
[423515930,1780182631000,-361.78934864,0.00011212,2]
[423515927,1780182631000,-209.12966642,0.00011211,2]
[423515938,1780182631000,-193.01849944,0.00011513,2]
[423515940,1780182631000,-196.60315747,0.00011211,2]
[423515937,1780182631000,-155.96,0.00011488,2]
[423515936,1780182631000,-150.0,0.00011485,2]
[423515939,1780182631000,-500.0,0.00011211,2]
[423515932,1780182631000,-241.36016704,0.00011335,2]
[423515929,1780182631000,-500.0,0.00011212,2]
[423515928,1780182631000,-1618.18449174,0.00011212,2]
[423515931,1780182631000,-250.0,0.00011212,2]
[423515933,1780182631000,-155.96,0.00011355,2]
[423515996,1780182632000,-150.0,0.0001209,2]
[423515986,1780182632000,-150.0,0.00011953,2]
[423515994,1780182632000,-155.96,0.00012085,2]
[423515993,1780182632000,-1000.0,0.00012073,2]
[423515989,1780182632000,-1310.52,0.00011979,2]
[423516000,1780182632000,-155.96,0.00012152,2]
[423515984,1780182632000,-155.96,0.00011953,2]
[423515998,1780182632000,-500.0,0.00012152,2]
[423516004,1780182632000,-155.96,0.00012218,2]
[423516006,1780182632000,-500.0,0.00012225,2]
[423516019,1780182632000,-500.0,0.00012378,2]
[423516008,1780182632000,-155.96,0.00012285,2]
[423516010,1780182632000,-1793.0,0.00012307,2]
[423516014,1780182632000,-1680.0,0.00012332,2]
[423516022,1780182632000,-155.96,0.00012417,2]
[423516016,1780182632000,-155.96,0.00012351,2]
[423516027,1780182632000,-178.95424806,0.00012443,2]
[423516012,1780182632000,-495.11,0.00012329,2]
[423516021,1780182632000,-163.56,0.00012378,2]
[423516029,1780182632000,-500.0,0.00012443,2]
[423515987,1780182632000,-1234.83,0.00011975,2]
[423515991,1780182632000,-155.96,0.00012019,2]
[423516002,1780182632000,-2510.02,0.00012158,2]
[423515959,1780182632000,-504.48842642,0.0001154,2]
[423515971,1780182632000,-155.96,0.00011621,2]
[423515941,1780182632000,-1146.69580043,0.00011513,2]
[423515942,1780182632000,-1012.46926091,0.00011513,2]
[423515943,1780182632000,-1007.6186775,0.00011513,2]
[423515947,1780182632000,-1053.71656762,0.00011513,2]
[423515945,1780182632000,-4016.76444638,0.00011513,2]
[423515950,1780182632000,-407.42717604,0.00011513,2]
[423515944,1780182632000,-992.31968148,0.00011513,2]
[423515954,1780182632000,-500.0,0.00011211,2]
[423515956,1780182632000,-1948.9798902,0.00011513,2]
[423516031,1780182632000,-262.79421951,0.00012443,2]
[423515972,1780182632000,-1985.0,0.00011627,2]
[423515958,1780182632000,-200.0,0.00011528,2]
[423515978,1780182632000,-155.96,0.00011753,2]
[423515974,1780182632000,-1239.0,0.00011627,2]
[423515976,1780182632000,-155.96,0.00011687,2]
[423515980,1780182632000,-155.96,0.0001182,2]
[423515982,1780182632000,-155.96,0.00011886,2]
[423515962,1780182632000,-155.96,0.00011554,2]
[423515964,1780182632000,-701.53,0.00011563,2]
[423515965,1780182632000,-593.4,0.00011597,2]
[423515967,1780182632000,-500.0,0.00011616,2]
[423515969,1780182632000,-8205.69,0.00011618,2]
[423515961,1780182632000,-471.06,0.00011551,2]
[423516033,1780182632000,-500.0,0.00012443,2]
[423516025,1780182632000,-500.0,0.00012426,2]
[423516042,1780182632000,-155.96,0.00012484,2]
[423516063,1780182632000,-1048.69259149,0.00013677,2]
[423516064,1780182632000,-500.0,0.00013699,2]
[423516065,1780182632000,-200.0,0.00013699,2]
[423516070,1780182632000,-6300.0,0.000137,5]
[423516072,1780182632000,-12600.0,0.000138,5]
[423516066,1780182632000,-166.66,0.00013699,2]
[423516069,1780182632000,-200.0,0.000137,2]
[423516068,1780182632000,-500.0,0.00013699,2]
[423516067,1780182632000,-500.0,0.00013699,2]
[423516074,1780182632000,-2000.0,0.00013813,2]
[423516084,1780182632000,-21737.33402914,0.00013913,2]
[423516086,1780182632000,-5401.64245683,0.00013913,2]
[423516085,1780182632000,-3350.99183932,0.00013913,2]
[423516073,1780182632000,-33234.4339,0.00013813,2]
[423516075,1780182632000,-4705.88294187,0.00013813,2]
[423516076,1780182632000,-166.66,0.00013836,2]
[423516035,1780182632000,-393.74803174,0.00012443,2]
[423516080,1780182632000,-500.0,0.00013912,2]
[423516082,1780182632000,-117313.8140397,0.00013913,2]
[423516079,1780182632000,-152.49,0.000139,2]
[423516081,1780182632000,-500.0,0.00013912,2]
[423516083,1780182632000,-152071.6605162,0.00013913,2]
[423516078,1780182632000,-18900.0,0.000139,5]
[423516071,1780182632000,-2899.32,0.00013753,2]
[423516061,1780182632000,-2500.0,0.00013599,2]
[423516077,1780182632000,-166.47233351,0.00013843,2]
[423516053,1780182632000,-166.27423638,0.00013399,2]
[423516062,1780182632000,-152.49,0.0001366,2]
[423516043,1780182632000,-155.96,0.0001255,2]
[423516037,1780182632000,-500.0,0.00012443,2]
[423516044,1780182632000,-2000.0,0.00012563,2]
[423516045,1780182632000,-162.61,0.00012638,2]
[423516047,1780182632000,-500.0,0.00012909,2]
[423516039,1780182632000,-500.0,0.00012443,2]
[423516040,1780182632000,-3215.51,0.00012444,2]
[423516046,1780182632000,-368.01143862,0.00012725,2]
[423516038,1780182632000,-332.28128717,0.00012443,2]
[423516052,1780182632000,-897.84053518,0.00013393,2]
[423516041,1780182632000,-181487.7111,0.00012464,2]
[423516060,1780182632000,-500.0,0.00013594,2]
[423516048,1780182632000,-166.46,0.00013015,2]
[423516058,1780182632000,-2351.0,0.00013566,2]
[423516056,1780182632000,-7171.77534694,0.00013499,2]
[423516059,1780182632000,-2503.26244613,0.00013586,2]
[423516057,1780182632000,-166.47233351,0.00013531,2]
[423516055,1780182632000,-240.56351546,0.00013498,2]
[423516051,1780182632000,-500.0,0.00013342,2]
[423516049,1780182632000,-255.0,0.00013028,2]
[423516050,1780182632000,-500.0,0.00013152,2]
[423516054,1780182632000,-1310.52,0.00013476,2]
[423516110,1780182638000,-154.585663,0.00013913,2]
[423516117,1780182638000,-156.0,0.00013913,2]
[423516126,1780182638000,-151.0,0.00013913,2]
[423516118,1780182638000,-156.0,0.00013913,2]
[423516115,1780182638000,-156.0,0.00013913,2]
[423516111,1780182638000,-1473.345959,0.00013913,2]
[423516112,1780182638000,-1473.345959,0.00013913,2]
[423516113,1780182638000,-1473.345959,0.00013913,2]
[423516114,1780182638000,-1473.345959,0.00013913,2]
[423516120,1780182638000,-162.476006,0.00013913,2]
[423516122,1780182638000,-162.476006,0.00013913,2]
[423516124,1780182638000,-162.476006,0.00013913,2]
[423516125,1780182638000,-162.476006,0.00013913,2]
[423516130,1780182638000,-166.66,0.00013973,2]
[423516100,1780182638000,-166005.61561461,0.00013913,2]
[423516142,1780182638000,-433.0,0.000142,2]
[423516128,1780182638000,-188.245692,0.00013913,2]
[423516106,1780182638000,-231.984886,0.00013913,2]
[423516096,1780182638000,-500.0,0.00013699,2]
[423516102,1780182638000,-151.0,0.00013913,2]
[423516132,1780182638000,-166.66,0.0001411,2]
[423516091,1780182638000,-313.21344227,0.00011211,2]
[423516090,1780182638000,-500.0,0.00011211,2]
[423516093,1780182638000,-500.0,0.00013699,2]
[423516095,1780182638000,-500.0,0.00013699,2]
[423516094,1780182638000,-500.0,0.00013699,2]
[423516092,1780182638000,-4175.8268,0.00013486,2]
[423516089,1780182638000,-500.0,0.00011211,2]
[423516097,1780182638000,-188.17771826,0.00013699,2]
[423516103,1780182638000,-151.0,0.00013913,2]
[423516105,1780182638000,-231.984886,0.00013913,2]
[423516104,1780182638000,-231.984886,0.00013913,2]
[423516101,1780182638000,-6104.0298333,0.00013913,2]
[423516109,1780182638000,-151.0,0.00013913,2]
[423516108,1780182638000,-151.0,0.00013913,2]
[423516107,1780182638000,-231.984886,0.00013913,2]
[423516099,1780182638000,-500.0,0.00013699,2]
[423516098,1780182638000,-500.0,0.00013699,2]
[423516133,1780182638000,-2000.0,0.00014134,2]
[423516193,1780182638000,-162.476006,0.00014289,2]
[423516140,1780182638000,-5000.0,0.00014189,2]
[423516199,1780182638000,-1500000.0,0.00014289,2]
[423516198,1780182638000,-151.0,0.00014289,2]
[423516192,1780182638000,-162.476006,0.00014289,2]
[423516195,1780182638000,-162.476006,0.00014289,2]
[423516183,1780182638000,-151.0,0.00014289,2]
[423516188,1780182638000,-1473.345959,0.00014289,2]
[423516185,1780182638000,-1473.345959,0.00014289,2]
[423516181,1780182638000,-151.0,0.00014289,2]
[423516197,1780182638000,-162.476006,0.00014289,2]
[423516186,1780182638000,-1473.345959,0.00014289,2]
[423516201,1780182638000,-152.49,0.00014379,2]
[423516202,1780182638000,-166.66,0.00014384,2]
[423516204,1780182638000,-152.49,0.00014619,2]
[423516203,1780182638000,-500.0,0.00014493,2]
[423516144,1780182638000,-166.66,0.00014247,2]
[423516205,1780182638000,-2000.0,0.00014742,2]
[423516200,1780182638000,-500.0,0.00014356,2]
[423516179,1780182638000,-231.984886,0.00014289,2]
[423516190,1780182638000,-1473.345959,0.00014289,2]
[423516161,1780182638000,-500.0,0.00014288,2]
[423516176,1780182638000,-231.984886,0.00014289,2]
[423516150,1780182638000,-150.0,0.00014288,2]
[423516136,1780182638000,-500.0,0.00014156,2]
[423516135,1780182638000,-152.49,0.0001414,2]
[423516138,1780182638000,-6819.31498358,0.00014189,2]
[423516152,1780182638000,-500.0,0.00014288,2]
[423516155,1780182638000,-500.0,0.00014288,2]
[423516165,1780182638000,-1676.0,0.00014289,5]
[423516148,1780182638000,-500.0,0.00014279,2]
[423516157,1780182638000,-500.0,0.00014288,2]
[423516163,1780182638000,-500.0,0.00014288,2]
[423516167,1780182638000,-151.0,0.00014289,2]
[423516175,1780182638000,-231.984886,0.00014289,2]
[423516173,1780182638000,-231.984886,0.00014289,2]
[423516146,1780182638000,-625.9765048,0.00014256,2]
[423516171,1780182638000,-151.0,0.00014289,2]
[423516169,1780182638000,-151.0,0.00014289,2]
[423516159,1780182638000,-500.0,0.00014288,2]
[423516241,1780182639000,-500.0,0.00015156,2]
[423516240,1780182639000,-500.0,0.00015156,2]
[423516242,1780182639000,-500.0,0.00015156,2]
[423516238,1780182639000,-500.0,0.00015156,2]
[423516250,1780182639000,-183.241988,0.00015203,2]
[423516248,1780182639000,-500.0,0.00015202,2]
[423516251,1780182639000,-24119.0,0.00015206,2]
[423516244,1780182639000,-338.87344356,0.00015156,2]
[423516249,1780182639000,-463.65970565,0.00015202,2]
[423516246,1780182639000,-151.0,0.000152,2]
[423516247,1780182639000,-151.0,0.000152,2]
[423516245,1780182639000,-455.48111648,0.000152,2]
[423516243,1780182639000,-500.0,0.00015156,2]
[423516257,1780182639000,-500.0,0.00015425,2]
[423516254,1780182639000,-2000.0,0.00015355,2]
[423516259,1780182639000,-152.0,0.0001558,2]
[423516253,1780182639000,-7404.4942647,0.00015303,2]
[423516260,1780182639000,-500.0,0.00015699,2]
[423516255,1780182639000,-1216.64,0.00015355,2]
[423516261,1780182639000,-2000.0,0.00015704,2]
[423516258,1780182639000,-617.0,0.00015479,2]
[423516256,1780182639000,-486.5,0.00015355,2]
[423516262,1780182639000,-2000.0,0.0001583,2]
[423516263,1780182639000,-2000.0,0.0001583,2]
[423516264,1780182639000,-2000.0,0.0001583,2]
[423516239,1780182639000,-500.0,0.00015156,2]
[423516265,1780182639000,-2000.0,0.0001583,2]
[423516252,1780182639000,-151.0,0.000153,2]
[423516237,1780182639000,-500.0,0.00015156,2]
[423516227,1780182639000,-954.128962,0.00015068,2]
[423516234,1780182639000,-500.0,0.00015156,2]
[423516272,1780182639000,-778.60591016,0.00016,2]
[423516206,1780182639000,-2000.0,0.00014742,2]
[423516207,1780182639000,-2000.0,0.00014742,2]
[423516210,1780182639000,-2000.0,0.00014742,2]
[423516208,1780182639000,-2000.0,0.00014742,2]
[423516211,1780182639000,-866.59,0.00014742,2]
[423516212,1780182639000,-1946.0,0.00014742,2]
[423516213,1780182639000,-7171.77534689,0.00014766,2]
[423516209,1780182639000,-2000.0,0.00014742,2]
[423516214,1780182639000,-2000.0,0.00014779,2]
[423516216,1780182639000,-1361.08,0.00014779,2]
[423516226,1780182639000,-954.128962,0.00015068,2]
[423516225,1780182639000,-954.128962,0.00015068,2]
[423516223,1780182639000,-4943.6804,0.00015057,2]
[423516217,1780182639000,-810.84,0.00014779,2]
[423516215,1780182639000,-2000.0,0.00014779,2]
[423516219,1780182639000,-152.49,0.00014859,2]
[423516220,1780182639000,-2681.0,0.00014922,2]
[423516221,1780182639000,-1310.52,0.00014973,2]
[423516218,1780182639000,-500.0,0.00014799,2]
[423516222,1780182639000,-4705.88294185,0.00015045,2]
[423516224,1780182639000,-7106.14351012,0.0001506,2]
[423516228,1780182639000,-954.128962,0.00015068,2]
[423516231,1780182639000,-954.128962,0.00015068,2]
[423516230,1780182639000,-954.128962,0.00015068,2]
[423516229,1780182639000,-954.128962,0.00015068,2]
[423516232,1780182639000,-954.128962,0.00015068,2]
[423516233,1780182639000,-152.49,0.00015098,2]
[423516235,1780182639000,-500.0,0.00015156,2]
[423516236,1780182639000,-501.41833734,0.00015156,2]
[423516266,1780182639000,-2000.0,0.0001583,2]
[423516283,1780182639000,-1000.0,0.00016337,2]
[423516274,1780182639000,-7171.77534689,0.00016033,2]
[423516305,1780182639000,-162.476006,0.00016438,2]
[423516306,1780182639000,-162.476006,0.00016438,2]
[423516308,1780182639000,-995.586587,0.00016438,2]
[423516307,1780182639000,-151.0,0.00016438,2]
[423516311,1780182639000,-995.586587,0.00016438,2]
[423516309,1780182639000,-995.586587,0.00016438,2]
[423516304,1780182639000,-162.476006,0.00016438,2]
[423516313,1780182639000,-995.586587,0.00016438,2]
[423516310,1780182639000,-995.586587,0.00016438,2]
[423516312,1780182639000,-995.586587,0.00016438,2]
[423516315,1780182639000,-995.586587,0.00016438,2]
[423516314,1780182639000,-995.586587,0.00016438,2]
[423516318,1780182639000,-995.586587,0.00016438,2]
[423516303,1780182639000,-162.476006,0.00016438,2]
[423516322,1780182639000,-4666.368867,0.00016438,2]
[423516329,1780182639000,-4666.368867,0.00016438,2]
[423516319,1780182639000,-995.586587,0.00016438,2]
[423516328,1780182639000,-4666.368867,0.00016438,2]
[423516327,1780182639000,-4666.368867,0.00016438,2]
[423516323,1780182639000,-4666.368867,0.00016438,2]
[423516321,1780182639000,-4666.368867,0.00016438,2]
[423516325,1780182639000,-4666.368867,0.00016438,2]
[423516324,1780182639000,-4666.368867,0.00016438,2]
[423516326,1780182639000,-4666.368867,0.00016438,2]
[423516331,1780182639000,-4666.368867,0.00016438,2]
[423516330,1780182639000,-4666.368867,0.00016438,2]
[423516332,1780182639000,-4666.368867,0.00016438,2]
[423516271,1780182639000,-603.2226976,0.00015952,2]
[423516316,1780182639000,-995.586587,0.00016438,2]
[423516295,1780182639000,-1473.345959,0.00016438,2]
[423516320,1780182639000,-995.586587,0.00016438,2]
[423516298,1780182639000,-1473.345959,0.00016438,2]
[423516276,1780182639000,-232.78566689,0.00016337,2]
[423516300,1780182639000,-954.128962,0.00016438,2]
[423516267,1780182639000,-2000.0,0.0001583,2]
[423516273,1780182639000,-300.0,0.00016,2]
[423516268,1780182639000,-151.0,0.00015837,2]
[423516270,1780182639000,-603.59971906,0.00015918,2]
[423516275,1780182639000,-4705.88294185,0.00016277,2]
[423516269,1780182639000,-350.0,0.00015865,2]
[423516277,1780182639000,-150.0,0.00016337,2]
[423516281,1780182639000,-1000.0,0.00016337,2]
[423516280,1780182639000,-1000.0,0.00016337,2]
[423516279,1780182639000,-151.0,0.00016337,2]
[423516288,1780182639000,-151.0,0.00016438,2]
[423516287,1780182639000,-877.27641831,0.00016438,2]
[423516284,1780182639000,-1000.0,0.00016337,2]
[423516282,1780182639000,-1000.0,0.00016337,2]
[423516293,1780182639000,-151.0,0.00016438,2]
[423516297,1780182639000,-1473.345959,0.00016438,2]
[423516285,1780182639000,-1040.24438291,0.00016337,2]
[423516294,1780182639000,-151.0,0.00016438,2]
[423516292,1780182639000,-231.984886,0.00016438,2]
[423516296,1780182639000,-1473.345959,0.00016438,2]
[423516291,1780182639000,-231.984886,0.00016438,2]
[423516299,1780182639000,-954.128962,0.00016438,2]
[423516302,1780182639000,-954.128962,0.00016438,2]
[423516290,1780182639000,-231.984886,0.00016438,2]
[423516278,1780182639000,-280.70653836,0.00016337,2]
[423516289,1780182639000,-231.984886,0.00016438,2]
[423516286,1780182639000,-2074.8,0.00016438,2]
[423516301,1780182639000,-954.128962,0.00016438,2]
[423516371,1780182640000,-350.0,0.00017549,2]
[423516377,1780182640000,-793.43309813,0.000177,2]
[423516375,1780182640000,-1704.65,0.00017572,2]
[423516370,1780182640000,-4705.88294185,0.00017509,2]
[423516372,1780182640000,-293.58,0.00017572,2]
[423516373,1780182640000,-11895.8,0.00017572,2]
[423516365,1780182640000,-150.44,0.00017175,2]
[423516380,1780182640000,-1545.0,0.00017877,2]
[423516368,1780182640000,-154.0,0.00017478,2]
[423516369,1780182640000,-253.40818272,0.00017478,2]
[423516363,1780182640000,-300.0,0.00017147,2]
[423516376,1780182640000,-1545.0,0.00017631,2]
[423516379,1780182640000,-150.0,0.000178,7]
[423516374,1780182640000,-849.66,0.00017572,2]
[423516391,1780182640000,-151.0,0.0001789,2]
[423516384,1780182640000,-151.0,0.00017877,2]
[423516387,1780182640000,-151.0,0.00017877,2]
[423516392,1780182640000,-151.0,0.0001789,2]
[423516382,1780182640000,-1545.0,0.00017877,2]
[423516381,1780182640000,-1545.0,0.00017877,2]
[423516386,1780182640000,-151.0,0.00017877,2]
[423516390,1780182640000,-1239.9526844,0.0001789,2]
[423516389,1780182640000,-304.0,0.00017877,2]
[423516383,1780182640000,-1545.0,0.00017877,2]
[423516388,1780182640000,-153.72526399,0.00017877,2]
[423516385,1780182640000,-151.0,0.00017877,2]
[423516393,1780182640000,-25200.0,0.000179,6]
[423516367,1780182640000,-7171.77534689,0.00017299,2]
[423516378,1780182640000,-350.0,0.000178,2]
[423516366,1780182640000,-2000.0,0.00017275,2]
[423516341,1780182640000,-377.783006,0.00016438,2]
[423516362,1780182640000,-350.0,0.00017054,2]
[423516395,1780182640000,-1545.0,0.00017957,2]
[423516333,1780182640000,-377.783006,0.00016438,2]
[423516339,1780182640000,-377.783006,0.00016438,2]
[423516335,1780182640000,-377.783006,0.00016438,2]
[423516338,1780182640000,-377.783006,0.00016438,2]
[423516340,1780182640000,-377.783006,0.00016438,2]
[423516337,1780182640000,-377.783006,0.00016438,2]
[423516336,1780182640000,-377.783006,0.00016438,2]
[423516334,1780182640000,-377.783006,0.00016438,2]
[423516342,1780182640000,-377.783006,0.00016438,2]
[423516353,1780182640000,-947.2,0.00016598,2]
[423516343,1780182640000,-377.783006,0.00016438,2]
[423516345,1780182640000,-152.0,0.00016444,2]
[423516347,1780182640000,-6618.30733777,0.000165,2]
[423516346,1780182640000,-1310.52,0.00016471,2]
[423516348,1780182640000,-13069.77314437,0.000165,2]
[423516349,1780182640000,-1000.0,0.000165,2]
[423516344,1780182640000,-377.783006,0.00016438,2]
[423516350,1780182640000,-151.0,0.000165,2]
[423516351,1780182640000,-238.228422,0.000165,2]
[423516352,1780182640000,-513.95,0.000165,2]